fUST/lending_fUST_20240117
["ID","MTS","AMOUNT","RATE_DAILY","PERIOD"]
[311818011,1705433446927,-504.69559052,0.00031917,2]
[311818012,1705433446937,-500.0,0.00031917,2]
[311818013,1705433446946,-501.22663069,0.00031917,2]
[311818014,1705433446955,-500.0,0.00031917,2]
[311818015,1705433446964,-8077.77,0.00031917,2]
[311818016,1705433446973,-929.35,0.00031917,2]
[311818017,1705433446982,-500.0,0.00031917,2]
[311818018,1705433446991,-500.0,0.00031917,2]
[311818019,1705433447001,-262.80785604,0.00031917,2]
[311818020,1705433447011,-501.605338,0.00031917,2]
[311818021,1705433447019,-1624.23,0.00031917,2]
[311818022,1705433447029,-500.0,0.00031917,2]
[311818023,1705433447038,-500.0,0.00031917,2]
[311818024,1705433447047,-500.0,0.00031917,2]
[311818025,1705433447056,-406.7888539,0.00031917,2]
[311818026,1705433447065,-500.0,0.00031917,2]
[311818027,1705433447075,-2120.16,0.00031917,2]
[311818028,1705433447084,-506.7967264,0.00031917,2]
[311818029,1705433447094,-500.0,0.00031917,2]
[311818030,1705433447103,-150.0,0.00031917,2]
[311818031,1705433447112,-500.0,0.00031917,2]
[311818032,1705433447121,-500.0,0.00031917,2]
[311818033,1705433447130,-1644.43,0.00031917,2]
[311818034,1705433447139,-207.2470042,0.00031917,2]
[311818035,1705433447148,-580.79,0.00031917,2]
[311818036,1705433447157,-500.0,0.00031917,4]
[311818037,1705433447167,-2574.87,0.00031917,2]
[311818038,1705433447176,-500.0,0.00031917,2]
[311818039,1705433447186,-500.0,0.00031917,2]
[311818040,1705433447195,-2623.25,0.00031917,2]
[311818041,1705433447205,-5222.48,0.00031917,2]
[311818042,1705433447214,-500.0,0.00031917,2]
[311818043,1705433447223,-500.0,0.00031917,2]
[311818044,1705433447232,-500.0,0.00031917,2]
[311818045,1705433447242,-500.0,0.00031917,2]
[311818046,1705433447251,-500.0,0.00031917,2]
[311818047,1705433447260,-512.99285901,0.00031917,2]
[311818048,1705433447269,-500.0,0.00031917,2]
[311818049,1705433447278,-15533.7,0.00031917,2]
[311818050,1705433447287,-500.0,0.00031917,2]
[311818051,1705433447297,-500.0,0.00031917,2]
[311818052,1705433447306,-500.0,0.00031917,2]
[311818053,1705433447315,-1341.81,0.00031917,2]
[311818054,1705433447325,-6757.02,0.00031917,2]
[311818055,1705433447335,-720.53,0.00031917,2]
[311818056,1705433447345,-501.0625085,0.00031917,2]
[311818057,1705433447354,-500.02,0.00031917,2]
[311818058,1705433447364,-298.91019762,0.00031917,2]
[311818059,1705433447373,-341.42797403,0.00031917,2]
[311818060,1705433447386,-500.0,0.00031917,2]
[311818061,1705433447398,-500.0,0.00031917,2]
[311818062,1705433447407,-500.0,0.00031917,2]
[311818063,1705433447416,-1717.44,0.00031917,2]
[311818064,1705433447426,-535.61,0.00031917,2]
[311818065,1705433447436,-500.0,0.00031917,2]
[311818066,1705433447445,-500.0,0.00031917,2]
[311818067,1705433447454,-500.0,0.00031917,2]
[311818068,1705433447464,-500.0,0.00031917,2]
[311818069,1705433447473,-26233.07,0.00031917,2]
[311818070,1705433447483,-1708.17,0.00031917,2]
[311818071,1705433447492,-500.0,0.00031917,2]
[311818072,1705433447501,-500.0,0.00031917,2]
[311818073,1705433447511,-500.0,0.00031917,2]
[311818074,1705433447520,-500.0,0.00031917,2]
[311818075,1705433447529,-500.0,0.00031917,2]
[311818076,1705433447538,-500.0,0.00031917,2]
[311818077,1705433447548,-832.98,0.00031917,2]
[311818078,1705433447557,-200.69824697,0.00031917,2]
[311818079,1705433447567,-500.0,0.00031917,2]
[311818080,1705433447576,-500.0,0.00031917,2]
[311818081,1705433447585,-1068.71,0.00031917,2]
[311818082,1705433447594,-714.55,0.00031917,2]
[311818083,1705433447604,-506.47400644,0.00031917,2]
[311818084,1705433447613,-500.0,0.00031917,2]
[311818085,1705433447622,-500.0,0.00031917,2]
[311818086,1705433447631,-664.0,0.00031917,2]
[311818087,1705433447641,-500.0,0.00031917,2]
[311818088,1705433447650,-500.0,0.00031917,2]
[311818089,1705433447659,-500.0,0.00031917,2]
[311818090,1705433447668,-699.21,0.00031917,2]
[311818091,1705433447678,-500.0,0.00031917,2]
[311818092,1705433447687,-500.0,0.00031917,2]
[311818093,1705433447697,-206.0511363,0.00031917,2]
[311818094,1705433447706,-500.0,0.00031917,2]
[311818095,1705433447715,-500.0,0.00031917,2]
[311818096,1705433447724,-500.0,0.00031917,2]
[311818097,1705433447733,-500.0,0.00031917,2]
[311818098,1705433447743,-500.0,0.00031917,2]
[311818099,1705433447752,-500.0,0.00031917,2]
[311818100,1705433447763,-2084.43,0.00031917,2]
[311818101,1705433447772,-509.60832325,0.00031917,2]
[311818102,1705433447782,-500.0,0.00031917,2]
[311818103,1705433447791,-5346.27,0.00031917,2]
[311818104,1705433447801,-500.0,0.00031917,2]
[311818105,1705433447874,-500.0,0.00031917,2]
[311818106,1705433447887,-500.0,0.00031917,2]
[311818107,1705433447896,-500.0,0.00031917,2]
[311818108,1705433447906,-275.27096145,0.00031998,4]
[311818109,1705433447915,-205.15552156,0.00031998,4]
[311818110,1705433447925,-1738.31995521,0.00031998,4]
[311818111,1705433447934,-671.84284078,0.00031998,4]
[311818112,1705433447943,-792.65,0.00031998,2]
[311818113,1705433447953,-198.31121037,0.00031999,4]
[311818114,1705433447962,-282.37927732,0.00031999,2]
[311818115,1705433447971,-792.65,0.00031999,2]
[311818116,1705433447980,-792.65,0.00031999,2]
[311818117,1705433447990,-792.65,0.00031999,2]
[311818118,1705433447999,-792.65,0.00031999,2]
[311818119,1705433448010,-792.65,0.00031999,2]
[311818120,1705433448019,-792.86879744,0.00031999,2]
[311818121,1705433448029,-119839.2823145,0.00032,15]
[311818122,1705433448038,-2000.0,0.00032,2]
[311818123,1705433448047,-507.592211,0.00032,3]
[311818124,1705433448057,-620.37267105,0.00032008,2]
[311818125,1705433448066,-2000.0,0.0003201,2]
[311818126,1705433448075,-620.03000514,0.0003201,2]
[311818127,1705433448085,-2000.0,0.0003202,2]
[311818128,1705433448094,-2000.0,0.0003203,2]
[311818129,1705433448104,-2000.0,0.0003204,2]
[311818130,1705433448114,-33273.52589292,0.00032046,2]
[311818131,1705433448123,-2000.0,0.0003205,2]
[311818132,1705433448132,-500.0,0.00032054,2]
[311818133,1705433448142,-500.0,0.00032054,2]
[311818134,1705433448151,-500.0,0.00032054,2]
[311818135,1705433448160,-625.17,0.00032054,2]
[311818136,1705433448169,-500.0,0.00032054,2]
[311818137,1705433448179,-500.0,0.00032054,2]
[311818138,1705433448188,-500.0,0.00032054,2]
[311818139,1705433448198,-500.0,0.00032054,2]
[311818140,1705433448207,-501.32561282,0.00032054,2]
[311818141,1705433448216,-500.0,0.00032054,2]
[311818142,1705433448225,-500.97034978,0.00032054,2]
[311818143,1705433448234,-500.0,0.00032054,2]
[311818144,1705433448245,-500.0,0.00032054,2]
[311818145,1705433448254,-500.0,0.00032054,2]
[311818146,1705433448263,-500.0,0.00032054,2]
[311818147,1705433448272,-1476.62,0.00032054,2]
[311818148,1705433448281,-500.0,0.00032054,2]
[311818149,1705433448290,-511.67588667,0.00032054,2]
[311818150,1705433448300,-500.0,0.00032054,2]
[311818151,1705433448309,-573.4,0.00032054,2]
[311818152,1705433448318,-500.0,0.00032054,2]
[311818153,1705433448328,-500.0,0.00032054,2]
[311818154,1705433448338,-500.0,0.00032054,2]
[311818155,1705433448347,-500.0,0.00032054,2]
[311818156,1705433448357,-205.26014526,0.00032054,2]
[311818157,1705433448367,-500.0,0.00032054,2]
[311818158,1705433448377,-500.0,0.00032054,2]
[311818159,1705433448390,-500.0,0.00032054,2]
[311818160,1705433448399,-500.0,0.00032054,2]
[311818161,1705433448409,-500.0,0.00032054,2]
[311818162,1705433448418,-500.0,0.00032054,2]
[311818163,1705433448427,-766.15,0.00032054,2]
[311818164,1705433448438,-500.0,0.00032054,2]
[311818165,1705433448447,-500.0,0.00032054,2]
[311818166,1705433448456,-500.0,0.00032054,2]
[311818167,1705433448466,-500.0,0.00032054,2]
[311818168,1705433448475,-500.0,0.00032054,2]
[311818169,1705433448485,-500.0,0.00032054,2]
[311818170,1705433448497,-813.19,0.00032054,2]
[311818171,1705433448507,-502.53367144,0.00032054,2]
[311818172,1705433448516,-1246.77,0.00032054,2]
[311818173,1705433448526,-500.0,0.00032054,2]
[311818174,1705433448535,-522.03,0.00032054,2]
[311818175,1705433448544,-506.61588092,0.00032054,2]
[311818176,1705433448554,-500.0,0.00032054,2]
[311818177,1705433448563,-500.0,0.00032054,2]
[311818178,1705433448572,-1000.0,0.00032054,2]
[311818179,1705433448582,-500.0,0.00032054,2]
[311818180,1705433448592,-500.0,0.00032054,2]
[311818181,1705433448601,-500.0,0.00032054,2]
[311818182,1705433448610,-500.0,0.00032054,2]
[311818183,1705433448620,-500.0,0.00032054,2]
[311818184,1705433448629,-853.34,0.00032054,2]
[311818185,1705433448639,-500.0,0.00032054,2]
[311818186,1705433448648,-607.48,0.00032054,2]
[311818187,1705433448657,-500.0,0.00032054,2]
[311818188,1705433448667,-500.0,0.00032054,2]
[311818189,1705433448676,-500.0,0.00032054,2]
[311818190,1705433448686,-500.0,0.00032054,2]
[311818191,1705433448695,-500.0,0.00032054,2]
[311818192,1705433448705,-500.0,0.00032054,2]
[311818193,1705433448714,-500.0,0.00032054,2]
[311818194,1705433448723,-500.0,0.00032054,2]
[311818195,1705433448733,-500.0,0.00032054,2]
[311818196,1705433448744,-629.59813165,0.00032054,2]
[311818197,1705433448752,-500.0,0.00032054,2]
[311818198,1705433448761,-502.05991619,0.00032054,2]
[311818199,1705433448771,-500.0,0.00032054,2]
[311818200,1705433448780,-790.03,0.00032054,2]
[311818201,1705433448789,-500.0,0.00032054,2]
[311818202,1705433448799,-500.0,0.00032054,2]
[311818203,1705433448809,-500.0,0.00032054,2]
[311818204,1705433448818,-500.0,0.00032054,2]
[311818205,1705433448828,-500.0,0.00032054,2]
[311818206,1705433448838,-500.0,0.00032054,2]
[311818207,1705433448847,-500.0,0.00032054,2]
[311818208,1705433448856,-500.0,0.00032054,2]
[311818209,1705433448865,-500.0,0.00032054,2]
[311818210,1705433448875,-500.0,0.00032054,2]
[311818211,1705433448885,-893.0,0.00032054,2]
[311818212,1705433448895,-500.0,0.00032054,2]
[311818213,1705433448904,-500.0,0.00032054,2]
[311818214,1705433448914,-502.36,0.00032054,2]
[311818215,1705433448924,-500.0,0.00032054,2]
[311818216,1705433448933,-500.0,0.00032054,2]
[311818217,1705433448943,-540.3,0.00032054,2]
[311818218,1705433448952,-500.0,0.00032054,2]
[311818219,1705433448962,-500.0,0.00032054,2]
[311818220,1705433448971,-641.4544874,0.00032054,2]
[311818221,1705433448980,-507.38053104,0.00032054,2]
[311818222,1705433448991,-500.0,0.00032054,2]
[311818223,1705433449001,-500.0,0.00032054,2]
[311818224,1705433449012,-1467.52,0.00032054,2]
[311818225,1705433449021,-611.78,0.00032054,2]
[311818226,1705433449031,-500.0,0.00032054,2]
[311818227,1705433449040,-500.0,0.00032054,5]
[311818228,1705433449049,-503.66,0.00032054,2]
[311818229,1705433449059,-500.0,0.00032054,2]
[311818230,1705433449068,-320.62715329,0.00032054,2]
[311818231,1705433449078,-500.0,0.00032054,2]
[311818232,1705433449087,-1244.34,0.00032054,2]
[311818233,1705433449097,-816.66,0.00032054,2]
[311818234,1705433449106,-1068.07,0.00032054,2]
[311818235,1705433449115,-1153.35,0.00032054,2]
[311818236,1705433449125,-1737.82,0.00032054,2]
[311818237,1705433449135,-500.0,0.00032054,2]
[311818238,1705433449144,-500.0,0.00032054,2]
[311818239,1705433449154,-500.0,0.00032054,2]
[311818240,1705433449163,-500.0,0.00032054,2]
[311818241,1705433449173,-6352.72,0.00032054,2]
[311818242,1705433449183,-500.0,0.00032054,2]
[311818243,1705433449192,-500.0,0.00032054,2]
[311818244,1705433449202,-8077.77,0.00032054,2]
[311818245,1705433449211,-929.35,0.00032054,2]
[311818246,1705433449280,-500.0,0.00032054,2]
[311818247,1705433449297,-500.0,0.00032054,2]
[311818248,1705433449306,-1624.23,0.00032054,2]
[311818249,1705433449316,-366.53809015,0.00032054,2]
[311818250,1705433449325,-500.0,0.00032054,2]
[311818251,1705433449335,-500.0,0.00032054,2]
[311818252,1705433449344,-500.0,0.00032054,2]
[311818253,1705433449354,-2120.16,0.00032054,2]
[311818254,1705433449364,-500.0,0.00032054,2]
[311818255,1705433449373,-150.0,0.00032054,2]
[311818256,1705433449386,-500.0,0.00032054,2]
[311818257,1705433449395,-500.0,0.00032054,2]
[311818258,1705433449404,-1644.43,0.00032054,2]
[311818259,1705433449414,-580.79,0.00032054,2]
[311818260,1705433449424,-500.0,0.00032054,4]
[311818261,1705433449434,-2574.87,0.00032054,2]
[311818262,1705433449443,-500.0,0.00032054,2]
[311818263,1705433449452,-218.13816662,0.00032054,2]
[311818264,1705433449463,-2623.25,0.00032054,2]
[311818265,1705433449472,-5222.48,0.00032054,2]
[311818266,1705433449481,-500.0,0.00032054,2]
[311818267,1705433449491,-500.0,0.00032054,2]
[311818268,1705433449501,-500.0,0.00032054,2]
[311818269,1705433449510,-500.0,0.00032054,2]
[311818270,1705433449519,-500.0,0.00032054,2]
[311818271,1705433449529,-500.0,0.00032054,2]
[311818272,1705433449538,-15533.7,0.00032054,2]
[311818273,1705433449547,-500.0,0.00032054,2]
[311818274,1705433449557,-500.0,0.00032054,2]
[311818275,1705433449567,-500.0,0.00032054,2]
[311818276,1705433449576,-1341.81,0.00032054,2]
[311818277,1705433449585,-6757.02,0.00032054,2]
[311818278,1705433449595,-720.53,0.00032054,2]
[311818279,1705433449604,-500.02,0.00032054,2]
[311818280,1705433449614,-500.0,0.00032054,2]
[311818281,1705433449623,-359.75870711,0.00032054,2]
[311818282,1705433449633,-501.46614651,0.00032054,2]
[311818283,1705433449642,-1717.44,0.00032054,2]
[311818284,1705433449651,-535.61,0.00032054,2]
[311818285,1705433449661,-500.0,0.00032054,2]
[311818286,1705433449670,-500.0,0.00032054,2]
[311818287,1705433449679,-500.0,0.00032054,2]
[311818288,1705433449689,-500.0,0.00032054,2]
[311818289,1705433449699,-26233.07,0.00032054,2]
[311818290,1705433449708,-1708.17,0.00032054,2]
[311818291,1705433449717,-500.0,0.00032054,2]
[311818292,1705433449727,-500.0,0.00032054,2]
[311818293,1705433449737,-500.0,0.00032054,2]
[311818294,1705433449746,-500.0,0.00032054,2]
[311818295,1705433449756,-500.0,0.00032054,2]
[311818296,1705433449765,-500.0,0.00032054,2]
[311818297,1705433449775,-832.98,0.00032054,2]
[311818298,1705433449784,-498.48161421,0.00032054,2]
[311818299,1705433449794,-498.0,0.00032054,2]
[311818300,1705433449803,-1068.71,0.00032054,2]
[311818301,1705433449813,-714.55,0.00032054,2]
[311818302,1705433449822,-500.0,0.00032054,2]
[311818303,1705433449832,-500.0,0.00032054,2]
[311818304,1705433449841,-664.0,0.00032054,2]
[311818305,1705433449850,-500.0,0.00032054,2]
[311818306,1705433449860,-500.0,0.00032054,2]
[311818307,1705433449869,-500.0,0.00032054,2]
[311818308,1705433449879,-699.21,0.00032054,2]
[311818309,1705433449888,-500.0,0.00032054,2]
[311818310,1705433449897,-500.0,0.00032054,2]
[311818311,1705433449906,-500.0,0.00032054,2]
[311818312,1705433449915,-500.0,0.00032054,2]
[311818313,1705433449925,-500.0,0.00032054,2]
[311818314,1705433449934,-500.0,0.00032054,2]
[311818315,1705433449944,-500.0,0.00032054,2]
[311818316,1705433449953,-500.0,0.00032054,2]
[311818317,1705433449962,-2084.43,0.00032054,2]
[311818318,1705433449971,-500.0,0.00032054,2]
[311818319,1705433449981,-5346.27,0.00032054,2]
[311818320,1705433449991,-500.0,0.00032054,2]
[311818321,1705433450000,-500.0,0.00032054,2]
[311818322,1705433450010,-500.0,0.00032054,2]
[311818323,1705433450020,-500.0,0.00032054,2]
[311818324,1705433450029,-2000.0,0.0003206,2]
[311818325,1705433450038,-2000.0,0.0003207,2]
[311818326,1705433450048,-2000.0,0.0003208,2]
[311818327,1705433450057,-2000.0,0.0003209,2]
[311818328,1705433450066,-2000.0,0.000321,2]
[311818329,1705433450075,-2000.0,0.0003211,2]
[311818330,1705433450085,-2000.0,0.0003212,2]
[311818331,1705433450094,-2000.0,0.0003213,2]
[311818332,1705433450103,-2000.0,0.0003214,2]
[311818333,1705433450112,-2000.0,0.0003215,2]
[311818334,1705433450121,-2000.0,0.0003216,2]
[311818335,1705433450130,-2000.0,0.0003217,3]
[311818336,1705433450139,-2000.0,0.0003218,3]
[311818337,1705433450148,-20021.38230688,0.00032186,2]
[311818338,1705433450157,-2744.311707,0.0003219,3]
[311818339,1705433450166,-500.0,0.00032191,2]
[311818340,1705433450207,-500.0,0.00032191,2]
[311818341,1705433450216,-500.0,0.00032191,2]
[311818342,1705433450226,-625.17,0.00032191,2]
[311818343,1705433450236,-500.0,0.00032191,2]
[311818344,1705433450246,-255.17026208,0.00032191,2]
[311818345,1705433450256,-500.0,0.00032191,2]
[311818346,1705433450266,-500.0,0.00032191,2]
[311818347,1705433450275,-500.0,0.00032191,2]
[311818348,1705433450286,-500.0,0.00032191,2]
[311818349,1705433450297,-232.5828535,0.00032191,2]
[311818350,1705433450307,-500.0,0.00032191,2]
[311818351,1705433450317,-500.0,0.00032191,2]
[311818352,1705433450327,-1476.62,0.00032191,2]
[311818353,1705433450337,-500.0,0.00032191,2]
[311818354,1705433450347,-500.0,0.00032191,2]
[311818355,1705433450358,-573.4,0.00032191,2]
[311818356,1705433450368,-500.0,0.00032191,2]
[311818357,1705433450378,-500.0,0.00032191,2]
[311818358,1705433450389,-500.0,0.00032191,2]
[311818359,1705433450400,-500.0,0.00032191,2]
[311818360,1705433450411,-500.0,0.00032191,2]
[311818361,1705433450420,-500.0,0.00032191,2]
[311818362,1705433450429,-500.0,0.00032191,2]
[311818363,1705433450439,-500.0,0.00032191,2]
[311818364,1705433450448,-500.0,0.00032191,2]
[311818365,1705433450457,-766.15,0.00032191,2]
[311818366,1705433450467,-500.0,0.00032191,2]
[311818367,1705433450476,-500.0,0.00032191,2]
[311818368,1705433450486,-500.0,0.00032191,2]
[311818369,1705433450495,-500.0,0.00032191,2]
[311818370,1705433450505,-484.88564107,0.00032191,2]
[311818371,1705433450515,-500.0,0.00032191,2]
[311818372,1705433450527,-813.19,0.00032191,2]
[311818373,1705433450537,-1246.77,0.00032191,2]
[311818374,1705433450547,-500.0,0.00032191,2]
[311818375,1705433450556,-522.03,0.00032191,2]
[311818376,1705433450627,-502.07568279,0.00032191,2]
[311818377,1705433450638,-500.0,0.00032191,2]
[311818378,1705433450649,-1000.0,0.00032191,2]
[311818379,1705433450659,-500.0,0.00032191,2]
[311818380,1705433450669,-500.0,0.00032191,2]
[311818381,1705433450678,-500.0,0.00032191,2]
[311818382,1705433450687,-500.0,0.00032191,2]
[311818383,1705433450697,-500.0,0.00032191,2]
[311818384,1705433450707,-853.34,0.00032191,2]
[311818385,1705433450716,-503.44599568,0.00032191,2]
[311818386,1705433450726,-607.48,0.00032191,2]
[311818387,1705433450736,-580.87925904,0.00032191,2]
[311818388,1705433450747,-500.0,0.00032191,2]
[311818389,1705433450757,-500.0,0.00032191,2]
[311818390,1705433450767,-500.0,0.00032191,2]
[311818391,1705433450777,-500.0,0.00032191,2]
[311818392,1705433450786,-500.0,0.00032191,2]
[311818393,1705433450796,-500.0,0.00032191,2]
[311818394,1705433450806,-500.0,0.00032191,2]
[311818395,1705433450817,-505.43791394,0.00032191,2]
[311818396,1705433450826,-500.0,0.00032191,2]
[311818397,1705433450837,-352.81105067,0.00032191,2]
[311818398,1705433450848,-790.03,0.00032191,2]
[311818399,1705433450858,-500.0,0.00032191,2]
[311818400,1705433450868,-500.0,0.00032191,2]
[311818401,1705433450877,-465.32110665,0.00032191,2]
[311818402,1705433450887,-500.0,0.00032191,2]
[311818403,1705433450897,-500.0,0.00032191,2]
[311818404,1705433450907,-500.0,0.00032191,2]
[311818405,1705433450918,-500.0,0.00032191,2]
[311818406,1705433450929,-500.0,0.00032191,2]
[311818407,1705433450940,-500.0,0.00032191,2]
[311818408,1705433450950,-500.0,0.00032191,2]
[311818409,1705433450960,-893.0,0.00032191,2]
[311818410,1705433450970,-500.0,0.00032191,2]
[311818411,1705433450980,-500.0,0.00032191,2]
[311818412,1705433450991,-502.36,0.00032191,2]
[311818413,1705433451002,-500.0,0.00032191,2]
[311818414,1705433451012,-500.0,0.00032191,2]
[311818415,1705433451021,-540.3,0.00032191,2]
[311818416,1705433451031,-500.0,0.00032191,2]
[311818417,1705433451041,-500.0,0.00032191,2]
[311818418,1705433451052,-500.0,0.00032191,2]
[311818419,1705433451062,-500.0,0.00032191,2]
[311818420,1705433451072,-1467.52,0.00032191,2]
[311818421,1705433451083,-611.78,0.00032191,2]
[311818422,1705433451093,-228.54049167,0.00032191,2]
[311818423,1705433451104,-500.0,0.00032191,5]
[311818424,1705433451114,-503.66,0.00032191,2]
[311818425,1705433451125,-500.0,0.00032191,2]
[311818426,1705433451135,-500.0,0.00032191,2]
[311818427,1705433451146,-1244.34,0.00032191,2]
[311818428,1705433451156,-816.66,0.00032191,2]
[311818429,1705433451165,-1068.07,0.00032191,2]
[311818430,1705433451175,-1153.35,0.00032191,2]
[311818431,1705433451185,-1737.82,0.00032191,2]
[311818432,1705433451195,-500.0,0.00032191,2]
[311818433,1705433451204,-503.69330106,0.00032191,2]
[311818434,1705433451213,-500.0,0.00032191,2]
[311818435,1705433451223,-500.0,0.00032191,2]
[311818436,1705433451232,-6352.72,0.00032191,2]
[311818437,1705433451247,-500.0,0.00032191,2]
[311818438,1705433451258,-502.47592386,0.00032191,2]
[311818439,1705433451270,-8077.77,0.00032191,2]
[311818440,1705433451279,-929.35,0.00032191,2]
[311818441,1705433451289,-500.0,0.00032191,2]
[311818442,1705433451300,-545.31632648,0.00032191,2]
[311818443,1705433451311,-1624.23,0.00032191,2]
[311818444,1705433451322,-503.80866795,0.00032191,2]
[311818445,1705433451332,-501.88991744,0.00032191,2]
[311818446,1705433451342,-500.0,0.00032191,2]
[311818447,1705433451351,-2120.16,0.00032191,2]
[311818448,1705433451361,-500.0,0.00032191,2]
[311818449,1705433451371,-150.0,0.00032191,2]
[311818450,1705433451380,-500.0,0.00032191,2]
[311818451,1705433451392,-500.0,0.00032191,2]
[311818452,1705433451401,-1644.43,0.00032191,2]
[311818453,1705433451410,-580.79,0.00032191,2]
[311818454,1705433451420,-500.0,0.00032191,4]
[311818455,1705433451430,-2574.87,0.00032191,2]
[311818456,1705433451440,-500.0,0.00032191,2]
[311818457,1705433451450,-2623.25,0.00032191,2]
[311818458,1705433451459,-5222.48,0.00032191,2]
[311818459,1705433451470,-500.0,0.00032191,2]
[311818460,1705433451482,-186.77148725,0.00032191,2]
[311818461,1705433451497,-207.349602,0.00032191,2]
[311818462,1705433451507,-500.0,0.00032191,2]
[311818463,1705433451517,-333.93342136,0.00032191,2]
[311818464,1705433451527,-500.0,0.00032191,2]
[311818465,1705433451536,-15533.7,0.00032191,2]
[311818466,1705433451546,-500.0,0.00032191,2]
[311818467,1705433451556,-500.0,0.00032191,2]
[311818468,1705433451565,-1341.81,0.00032191,2]
[311818469,1705433451576,-6757.02,0.00032191,2]
[311818470,1705433451585,-720.53,0.00032191,2]
[311818471,1705433451594,-500.02,0.00032191,2]
[311818472,1705433451603,-500.0,0.00032191,2]
[311818473,1705433451614,-1717.44,0.00032191,2]
[311818474,1705433451623,-535.61,0.00032191,2]
[311818475,1705433451633,-500.0,0.00032191,2]
[311818476,1705433451643,-500.0,0.00032191,2]
[311818477,1705433451653,-500.0,0.00032191,2]
[311818478,1705433451664,-500.0,0.00032191,2]
[311818479,1705433451673,-26233.07,0.00032191,2]
[311818480,1705433451683,-1708.17,0.00032191,2]
[311818481,1705433451692,-500.0,0.00032191,2]
[311818482,1705433451702,-500.0,0.00032191,2]
[311818483,1705433451711,-500.0,0.00032191,2]
[311818484,1705433451721,-500.0,0.00032191,2]
[311818485,1705433451731,-500.0,0.00032191,2]
[311818486,1705433451743,-500.0,0.00032191,2]
[311818487,1705433451753,-832.98,0.00032191,2]
[311818488,1705433451763,-1068.71,0.00032191,2]
[311818489,1705433451773,-714.55,0.00032191,2]
[311818490,1705433451783,-500.0,0.00032191,2]
[311818491,1705433451793,-500.0,0.00032191,2]
[311818492,1705433451803,-664.0,0.00032191,2]
[311818493,1705433451813,-500.0,0.00032191,2]
[311818494,1705433451823,-500.0,0.00032191,2]
[311818495,1705433451833,-500.0,0.00032191,2]
[311818496,1705433451904,-500.0,0.00032191,2]
[311818497,1705433451914,-500.0,0.00032191,2]
[311818498,1705433451924,-500.0,0.00032191,2]
[311818499,1705433451934,-500.0,0.00032191,2]
[311818500,1705433451944,-699.21,0.00032191,2]
[311818501,1705433451953,-500.0,0.00032191,2]
[311818502,1705433451962,-500.0,0.00032191,2]
[311818503,1705433451973,-500.0,0.00032191,2]
[311818504,1705433451983,-2084.43,0.00032191,2]
[311818505,1705433451997,-500.0,0.00032191,2]
[311818506,1705433452007,-500.0,0.00032191,2]
[311818507,1705433452017,-5346.27,0.00032191,2]
[311818508,1705433452027,-500.83532328,0.00032191,2]
[311818509,1705433452036,-500.0,0.00032191,2]
[311818510,1705433452045,-500.0,0.00032191,2]